lending/lending_fUSD_20260306
["ID","MTS","AMOUNT","RATE_DAILY","PERIOD"]
[407787198,1772801160915,-499.99999999,0.00015524,2]
[407787199,1772801160925,-500.0,0.00015524,2]
[407787200,1772801160934,-500.0,0.00015524,2]
[407787201,1772801160943,-500.0,0.00015524,2]
[407787202,1772801160952,-530.19193273,0.00015524,2]
[407787203,1772801160961,-335.60035364,0.00015524,2]
[407787204,1772801160970,-461.53343634,0.00015524,2]
[407787205,1772801160981,-500.0,0.00015524,2]
[407787206,1772801160990,-370.08225689,0.00015524,2]
[407787207,1772801160999,-197.80004415,0.00015524,2]
[407787208,1772801161008,-500.0,0.00015524,2]
[407787209,1772801161017,-500.0,0.00015524,2]
[407787210,1772801161026,-500.0,0.00015524,2]
[407787211,1772801161036,-500.0,0.00015524,2]
[407787212,1772801161045,-316.18691684,0.00015524,2]
[407787213,1772801161085,-183.81308316,0.00015524,2]
[407787214,1772801161095,-500.0,0.00015524,2]
[407787215,1772801161104,-500.0,0.00015524,2]
[407787216,1772801161114,-500.0,0.00015524,2]
[407787217,1772801161123,-500.0,0.00015524,2]
[407787218,1772801161133,-500.0,0.00015524,2]
[407787219,1772801161142,-500.0,0.00015524,2]
[407787220,1772801161151,-500.0,0.00015524,2]
[407787221,1772801161160,-500.0,0.00015524,2]
[407787222,1772801161170,-500.0,0.00015524,2]
[407787223,1772801161179,-500.0,0.00015524,2]
[407787224,1772801161189,-500.0,0.00015524,2]
[407787225,1772801161199,-500.0,0.00015524,2]
[407787226,1772801161208,-500.0,0.00015524,2]
[407787227,1772801161217,-500.0,0.00015524,2]
[407787228,1772801161227,-500.0,0.00015524,2]
[407787229,1772801161236,-500.0,0.00015524,2]
[407787230,1772801161246,-500.0,0.00015524,2]
[407787231,1772801161256,-500.0,0.00015524,2]
[407787232,1772801161267,-500.0,0.00015524,2]
[407787233,1772801161276,-316.19691684,0.00015524,2]
[407787234,1772801161347,-183.80308316,0.00015524,2]
[407787235,1772801161356,-500.0,0.00015524,2]
[407787236,1772801161367,-500.0,0.00015524,2]
[407787237,1772801161376,-500.0,0.00015524,2]
[407787238,1772801161385,-500.0,0.00015524,2]
[407787239,1772801161394,-500.0,0.00015524,2]
[407787240,1772801161403,-500.0,0.00015524,2]
[407787241,1772801161412,-574.2744772,0.00015524,2]
[407787242,1772801161421,-500.0,0.00015524,2]
[407787243,1772801161430,-500.0,0.00015524,2]
[407787244,1772801161440,-500.0,0.00015524,2]
[407787245,1772801161449,-500.0,0.00015524,2]
[407787246,1772801161457,-500.0,0.00015524,2]
[407787247,1772801161467,-500.0,0.00015524,2]
[407787248,1772801161476,-500.0,0.00015524,2]
[407787249,1772801161485,-500.0,0.00015524,2]
[407787250,1772801161495,-500.0,0.00015524,2]
[407787251,1772801161505,-500.0,0.00015524,2]
[407787252,1772801161516,-500.0,0.00015524,2]
[407787253,1772801161526,-500.0,0.00015524,2]
[407787254,1772801161537,-241.93243964,0.00015524,2]
[407787255,1772801161619,-358.06756036,0.00015524,2]
[407787256,1772801161628,-500.0,0.00015524,2]
[407787257,1772801161638,-500.0,0.00015524,2]
[407787258,1772801161648,-500.0,0.00015524,2]
[407787259,1772801161658,-500.0,0.00015524,2]
[407787260,1772801161667,-500.0,0.00015524,2]
[407787261,1772801161676,-500.0,0.00015525,2]
[407787262,1772801161686,-215.82300736,0.00015525,2]
[407787263,1772801161696,-500.0,0.00015525,2]
[407787264,1772801161705,-506.32822282,0.00015525,2]
[407787265,1772801161715,-500.0,0.00015525,2]
[407787266,1772801161725,-500.0,0.00015525,2]
[407787267,1772801161734,-500.0,0.00015525,2]
[407787268,1772801161745,-500.0,0.00015525,2]
[407787269,1772801161755,-500.0,0.00015525,2]
[407787270,1772801161764,-500.0,0.00015525,2]
[407787271,1772801161774,-500.0,0.00015525,2]
[407787272,1772801161783,-500.0,0.00015525,2]
[407787273,1772801161792,-500.0,0.00015525,2]
[407787274,1772801161802,-500.0,0.00015525,2]
[407787275,1772801161811,-419.79120946,0.00015525,2]
[407787276,1772801161889,-80.20879054,0.00015525,2]
[407787277,1772801161899,-500.0,0.00015525,2]
[407787278,1772801161908,-500.0,0.00015525,2]
[407787279,1772801161918,-500.0,0.00015525,2]
[407787280,1772801161929,-500.0,0.00015525,2]
[407787281,1772801161939,-500.0,0.00015525,2]
[407787282,1772801161947,-500.0,0.00015525,2]
[407787283,1772801161958,-500.0,0.00015525,2]
[407787284,1772801161968,-500.0,0.00015525,2]
[407787285,1772801161977,-500.0,0.00015525,2]
[407787286,1772801161986,-500.0,0.00015525,2]
[407787287,1772801161995,-500.0,0.00015525,2]
[407787288,1772801162004,-500.0,0.00015525,2]
[407787289,1772801162014,-500.0,0.00015525,2]
[407787290,1772801162024,-283.81037588,0.00015525,2]
[407787291,1772801162033,-3135.99083358,0.00015525,2]
[407787292,1772801163683,-10000.01,0.00015525,2]
[407787293,1772801164084,-10000.01,0.00015525,2]
[407787294,1772801164098,-10000.01,0.00015525,2]
[407787295,1772801164112,-10000.01,0.00015525,2]
[407787296,1772801164163,-10000.01,0.00015525,2]
[407787297,1772801164198,-10000.01,0.00015525,2]
[407787298,1772801235156,331.82,0.00012,2]
[407787299,1772801235225,540.08093927,0.00012,2]
[407787300,1772801235282,500.0,0.00012,2]
[407787301,1772801240109,500.0,0.00012,2]
[407787302,1772801240824,500.0,0.00012,2]
[407787303,1772801241340,500.0,8e-05,2]
[407787304,1772801364685,-516.0,0.00014,2]
[407787305,1772801364714,-300.0,0.00014317,2]
[407787306,1772801364741,-151.0,0.00014634,2]
[407787307,1772801364769,-208.36416368,0.00014634,2]
[407787308,1772801364796,-1321.02,0.00014706,2]
[407787309,1772801364824,-500.0,0.00015148,2]
[407787310,1772801364851,-341.10485996,0.000153,2]
[407787311,1772801364880,-341.10485994,0.00015313,2]
[407787312,1772801364912,-341.10485994,0.00015326,2]
[407787313,1772801364940,-153.07874238,0.00015326,2]
[407787314,1772801364968,-300.0,0.00015399,2]
[407787315,1772801365293,-1135.79850273,0.000154,2]
[407787316,1772801365321,-200.0,0.000154,2]
[407787317,1772801365353,-600.0,0.000154,2]
[407787318,1772801365382,-300.0,0.000154,2]
[407787319,1772801365411,-290.75623666,0.000154,2]
[407787320,1772801365443,-250.0,0.000154,2]
[407787321,1772801365470,-600.0,0.000154,2]
[407787322,1772801365500,-300.0,0.000154,2]
[407787323,1772801365530,-300.0,0.00015423,2]
[407787324,1772801366332,-307.02096958,0.00015424,2]
[407787325,1772801366396,-10000.01,0.00015424,2]
[407787326,1772801366433,-10000.01,0.00015424,2]
[407787328,1772801367768,-10000.01,0.00015424,2]
[407787329,1772801370573,-10000.01,0.00015424,2]
[407787330,1772801370693,-10000.01,0.00015424,2]
[407787331,1772801370789,-10000.01,0.00015424,2]
[407787335,1772801431336,-151.0,0.00014634,2]
[407787336,1772801431345,-271.0,0.00014634,2]
[407787337,1772801431354,-166.66,0.00015237,2]
[407787338,1772801431364,-200.0,0.00015415,2]
[407787339,1772801431380,-1200.0,0.00015423,2]
[407787340,1772801431389,-300.0,0.00015423,2]
[407787341,1772801431399,-38016.56673042,0.00015424,2]
[407787342,1772801431408,-9024.34521834,0.00015426,2]
[407787343,1772801431417,-1013.12814568,0.00015426,2]
[407787344,1772801431426,-7838.69581512,0.00015426,2]
[407787345,1772801431435,-1046.63876346,0.00015426,2]
[407787346,1772801431444,-151.0,0.00015516,2]
[407787347,1772801431453,-151.0,0.00015516,2]
[407787348,1772801431462,-151.0,0.00015516,2]
[407787349,1772801431471,-151.0,0.00015516,2]
[407787354,1772801431806,-151.0,0.00015516,2]
[407787355,1772801431827,-151.0,0.00015516,2]
[407787356,1772801431836,-151.0,0.00015516,2]
[407787357,1772801431845,-202.72622012,0.00015516,2]
[407787358,1772801431854,-151.0,0.00015516,2]
[407787359,1772801431863,-151.0,0.00015516,2]
[407787360,1772801431873,-151.0,0.00015516,2]
[407787361,1772801431883,-151.0,0.00015516,2]
[407787362,1772801431892,-1388.81305429,0.00015524,2]
[407787363,1772801431902,-391.10379836,0.00015524,2]
[407787364,1772801431911,-500.0,0.00015524,2]
[407787365,1772801431921,-500.0,0.00015524,2]
[407787366,1772801431932,-500.0,0.00015524,2]
[407787367,1772801431942,-530.19193273,0.00015524,2]
[407787368,1772801431951,-234.92024755,0.00015524,2]
[407787369,1772801431961,-179.39145694,0.00015524,2]
[407787370,1772801431970,-164.10145643,0.00015525,2]
[407787371,1772801431982,-365.69831865,0.00015525,2]
[407787372,1772801431991,-500.0,0.00015525,2]
[407787373,1772801432002,-500.0,0.00015525,2]
[407787374,1772801432011,-431.19033015,0.00015525,2]
[407787375,1772801432037,-81.93697986,0.00015525,2]
[407787376,1772801432046,-500.0,0.00015525,2]
[407787377,1772801432055,-500.0,0.00015525,2]
[407787378,1772801432064,-500.0,0.00015525,2]
[407787379,1772801432073,-500.0,0.00015525,2]
[407787380,1772801432082,-500.0,0.00015525,2]
[407787381,1772801432092,-500.0,0.00015525,2]
[407787382,1772801432101,-500.0,0.00015525,2]
[407787383,1772801432111,-500.0,0.00015525,2]
[407787384,1772801432120,-500.0,0.00015525,2]
[407787385,1772801432129,-500.0,0.00015525,2]
[407787386,1772801432138,-500.0,0.00015525,2]
[407787387,1772801432147,-500.0,0.00015525,2]
[407787388,1772801432157,-500.0,0.00015525,2]
[407787389,1772801432166,-375.51504437,0.00015525,2]
[407787390,1772801432177,-124.48495563,0.00015525,2]
[407787391,1772801432186,-462.18232633,0.00015525,2]
[407787392,1772801432195,-32912.143,0.00015526,2]
[407787393,1772801432204,-500.34430685,0.00015573,2]
[407787394,1772801432213,-500.0,0.00015573,2]
[407787395,1772801432222,-502.25687536,0.00015573,2]
[407787396,1772801432231,-500.0,0.00015573,2]
[407787397,1772801432240,-500.37983606,0.00015573,2]
[407787398,1772801432250,-500.0,0.00015573,2]
[407787399,1772801432260,-500.0,0.00015573,2]
[407787400,1772801432270,-500.0,0.00015573,2]
[407787401,1772801432279,-500.0,0.00015573,2]
[407787402,1772801432289,-500.0,0.00015573,2]
[407787403,1772801432298,-500.0,0.00015573,2]
[407787404,1772801432307,-500.0,0.00015573,2]
[407787405,1772801432317,-163.88295064,0.00015573,2]
[407787406,1772801432327,-500.0,0.00015573,2]
[407787407,1772801432336,-500.0,0.00015573,2]
[407787408,1772801432345,-500.0,0.00015573,2]
[407787409,1772801432355,-500.0,0.00015573,2]
[407787410,1772801432364,-171.87038139,0.000156,2]
[407787411,1772801432375,-171.87038139,0.000156,2]
[407787412,1772801432384,-171.87038139,0.000156,2]
[407787413,1772801432394,-329.65,0.00015622,2]
[407787414,1772801432404,-500.0,0.00015626,2]
[407787415,1772801432414,-500.0,0.00015626,2]
[407787416,1772801432423,-500.0,0.00015626,2]
[407787417,1772801432434,-413.95660496,0.00015626,2]
[407787420,1772801437504,-365.86339504,0.00015626,2]
[407787421,1772801437515,-500.0,0.00015626,2]
[407787422,1772801437525,-500.0,0.00015626,2]
[407787423,1772801437535,-74.9589909,0.00015626,2]
[407787424,1772801437587,-503.7310091,0.00015626,2]
[407787425,1772801437597,-337.66,0.00015678,2]
[407787426,1772801437607,-166.66,0.0001574,2]
[407787427,1772801437616,-110.58879286,0.00015765,2]
[407787428,1772801437629,-4599.69437574,0.00015765,2]
[407787429,1772801437640,-3453.87704726,0.00015765,2]
[407787430,1772801437651,-1652.04759879,0.00015765,2]
[407787431,1772801437718,-3808.72218535,0.00015765,2]
[407787432,1772801437727,-209.48,0.00015798,2]
[407787433,1772801437736,-9024.34521833,0.00015923,2]
[407787434,1772801437746,-7838.6958151,0.00015923,2]
[407787435,1772801437755,-1500.0,0.00015958,2]
[407787436,1772801437764,-258.69744367,0.0001596,2]
[407787438,1772801437774,-11517.28,0.00015974,2]
[407787440,1772801437783,-1013.12814565,0.00016065,2]
[407787442,1772801437792,-589.03508066,0.00016121,2]
[407787444,1772801437802,-372.24433971,0.00016121,2]
[407787446,1772801437810,-573.58002767,0.00016121,2]
[407787448,1772801437820,-1000.0,0.00016121,2]
[407787450,1772801437829,-500.0,0.00016121,2]
[407787452,1772801437838,-407.46862187,0.00016121,2]
[407787454,1772801437847,-1000.0,0.00016121,2]
[407787456,1772801437856,-500.18261012,0.00016121,2]
[407787458,1772801437866,-1000.0,0.00016121,2]
[407787459,1772801437876,-309.98091476,0.00016121,2]
[407787460,1772801437886,-500.0,0.00016121,2]
[407787461,1772801437896,-900.0,0.00016125,2]
[407787462,1772801437905,-337.66,0.00016184,2]
[407787463,1772801437915,-166.66,0.00016243,2]
[407787464,1772801437926,-318.82,0.00016323,2]
[407787465,1772801437936,-9024.34521833,0.0001642,2]
[407787466,1772801437946,-7838.6958151,0.0001642,2]
[407787467,1772801437955,-329.65,0.0001649,2]
[407787468,1772801437967,-2000.0,0.000165,2]
[407787469,1772801437976,-510.0,0.00016549,2]
[407787470,1772801437985,-500.0,0.00016574,2]
[407787471,1772801437995,-500.0,0.00016574,2]
[407787472,1772801438004,-500.0,0.00016574,2]
[407787473,1772801438013,-779.82,0.00016574,2]
[407787474,1772801438023,-551.6181156,0.00016574,2]
[407787475,1772801438032,-578.69,0.00016574,2]
[407787476,1772801438041,-2000.0,0.000166,2]
[407787477,1772801438050,-1500.0,0.00016668,2]
[407787478,1772801438060,-500.0,0.00016674,2]
[407787479,1772801438069,-500.0,0.00016674,2]
[407787480,1772801438078,-500.0,0.00016674,2]
[407787481,1772801438087,-497.49770464,0.00016674,2]
[407787482,1772801438097,-1512.01,0.00016674,2]
[407787483,1772801438106,-1512.01,0.00016674,30]
[407787484,1772801438115,-500.0,0.00016674,2]
[407787485,1772801438125,-500.0,0.00016674,2]
[407787486,1772801438134,-500.0,0.00016674,2]
[407787487,1772801438143,-500.0,0.00016674,2]
[407787488,1772801438155,-500.0,0.00016674,2]
[407787489,1772801438164,-500.0,0.00016674,2]
[407787490,1772801438173,-500.0,0.00016674,2]
[407787491,1772801438183,-500.0,0.00016674,2]
[407787492,1772801438193,-500.0,0.00016674,2]
[407787493,1772801438203,-630.4807599,0.00016674,2]
[407787494,1772801438212,-500.0,0.00016674,2]
[407787495,1772801438222,-500.0,0.00016674,2]
[407787496,1772801438231,-274.62,0.00016674,2]
[407787497,1772801438240,-500.0,0.00016674,2]
[407787498,1772801438249,-500.0,0.00016674,2]
[407787499,1772801438258,-500.0,0.00016674,2]
[407787500,1772801438269,-779.82,0.00016674,2]
[407787501,1772801438278,-779.82,0.00016674,2]
[407787502,1772801438287,-779.82,0.00016674,2]
[407787503,1772801438297,-779.82,0.00016674,2]
[407787504,1772801438307,-779.82,0.00016674,2]
[407787505,1772801438316,-779.82,0.00016674,2]
[407787506,1772801438326,-779.82,0.00016674,2]
[407787507,1772801438334,-779.82,0.00016674,2]
[407787508,1772801438343,-779.82,0.00016674,2]
[407787509,1772801438353,-779.82,0.00016674,2]
[407787510,1772801438362,-578.69,0.00016674,2]
[407787511,1772801438371,-578.69,0.00016674,2]
[407787512,1772801438380,-578.69,0.00016674,2]
[407787513,1772801438389,-578.69,0.00016674,2]
[407787514,1772801438398,-578.69,0.00016674,2]
[407787515,1772801438408,-578.69,0.00016674,2]
[407787516,1772801438417,-578.69,0.00016674,2]
[407787517,1772801438427,-578.69,0.00016674,2]
[407787518,1772801438436,-578.69,0.00016674,2]
[407787519,1772801438446,-578.69,0.00016674,2]
[407787520,1772801438456,-337.66,0.0001669,2]
[407787521,1772801438466,-2000.0,0.000167,2]
[407787522,1772801438475,-1013.12814565,0.00016704,2]
[407787523,1772801438485,-500.0,0.00016733,2]
[407787524,1772801438494,-500.0,0.00016733,2]
[407787525,1772801438504,-500.0,0.0001674,2]
[407787526,1772801438514,-500.0,0.0001674,2]
[407787527,1772801438526,-500.0,0.0001674,2]
[407787528,1772801438536,-500.0,0.0001674,2]
[407787529,1772801438546,-166.66,0.00016746,2]
[407787530,1772801438555,-169.27,0.0001679,2]
[407787531,1772801438564,-2000.0,0.000168,2]
[407787532,1772801438575,-2000.0,0.000168,2]
[407787533,1772801438584,-2000.0,0.000168,2]
[407787534,1772801438593,-420.0,0.00016873,2]
[407787535,1772801438602,-2000.0,0.000169,2]
[407787536,1772801438612,-2000.0,0.000169,2]
[407787537,1772801438621,-2000.0,0.000169,2]
[407787538,1772801438630,-2000.0,0.000169,2]
[407787539,1772801438639,-2000.0,0.000169,2]
[407787540,1772801438647,-2000.0,0.000169,2]
[407787541,1772801438656,-9024.34521833,0.00016917,2]
[407787542,1772801438665,-7838.6958151,0.00016917,2]
[407787543,1772801438674,-1680.0,0.00016958,2]
[407787544,1772801438682,-300.0,0.00017,2]
[407787545,1772801438693,-1500.0,0.00017,2]
[407787546,1772801438702,-2800.840232,0.00017,2]
[407787547,1772801438710,-169.27,0.0001706,2]
[407787548,1772801438719,-2500.0,0.00017076,2]
[407787549,1772801438728,-250.0,0.00017076,2]
[407787550,1772801438737,-201.02283198,0.00017076,2]
[407787551,1772801438746,-600.0,0.00017078,2]
[407787552,1772801438754,-203.71480102,0.00017078,2]
[407787553,1772801438763,-337.66,0.00017195,2]
[407787554,1772801438775,-500.0,0.0001721,2]
[407787555,1772801438783,-2000.0,0.00017216,2]
[407787556,1772801438793,-166.66,0.00017249,2]
[407787557,1772801438802,-235.21838039,0.00017281,2]
[407787558,1772801438812,-1000.0,0.00017281,2]
[407787559,1772801438822,-1000.0,0.00017288,2]
[407787560,1772801438831,-1000.0,0.00017288,2]
[407787561,1772801438840,-1000.0,0.00017288,2]
[407787562,1772801438857,-1000.0,0.00017288,2]
[407787563,1772801438867,-779.82,0.00017312,2]
[407787564,1772801438877,-578.69,0.00017312,2]
[407787565,1772801438886,-169.27,0.0001733,2]
[407787566,1772801438895,-1013.12814565,0.00017343,2]
[407787567,1772801438904,-2000.0,0.00017346,2]
[407787568,1772801438914,-329.65,0.00017358,2]
[407787569,1772801438925,-9024.34521833,0.00017414,2]
[407787570,1772801438934,-7838.6958151,0.00017414,2]
[407787571,1772801438944,-18537.22,0.0001751,7]
[407787572,1772801438953,-3734.77,0.0001751,7]
[407787573,1772801438963,-169.27,0.000176,2]
[407787574,1772801438973,-438.37292204,0.00017663,2]
[407787575,1772801438982,-337.66,0.00017701,2]
[407787576,1772801438992,-166.66,0.00017752,2]
[407787577,1772801439002,-866.0,0.00017752,2]
[407787578,1772801439011,-449.5306254,0.00017758,2]
[407787579,1772801439020,-2500.0,0.00017764,2]
[407787580,1772801439029,-800.0,0.00017808,2]
[407787581,1772801439038,-1308.16777389,0.00017812,2]
[407787582,1772801439047,-1057.2086331,0.00017829,2]
[407787583,1772801439056,-5337.91522031,0.00017835,2]
[407787584,1772801439064,-1500.0,0.00017836,2]
[407787585,1772801439074,-1500.0,0.00017836,2]
[407787586,1772801439083,-1500.0,0.00017836,2]
[407787587,1772801439092,-1500.0,0.00017836,2]
[407787588,1772801439101,-169.27,0.0001787,2]
[407787589,1772801439110,-500.0,0.00017911,2]
[407787590,1772801439119,-9024.34521833,0.00017912,2]
[407787591,1772801439128,-7838.6958151,0.00017912,2]
[407787592,1772801439138,-199.65636282,0.00017935,3]
[407787593,1772801439147,-1013.12814565,0.00017983,2]
[407787594,1772801439156,-182.80013699,0.00018,2]
[407787595,1772801439165,-200.0,0.00018,2]
[407787596,1772801439173,-13902.92,0.00018035,7]
[407787598,1772801439182,-2801.07,0.00018035,7]
[407787600,1772801439191,-169.27,0.0001814,2]
[407787601,1772801439200,-337.66,0.00018207,2]
[407787602,1772801439209,-329.65,0.00018226,2]
[407787603,1772801439218,-3000.0,0.00018312,2]
[407787604,1772801439227,-4000.0,0.00018362,2]
[407787605,1772801439236,-1778.57186039,0.00018384,2]
[407787606,1772801439245,-2000.0,0.00018384,2]
[407787607,1772801439254,-847.0,0.000184,2]
[407787608,1772801439263,-160.0,0.000184,2]
[407787609,1772801439272,-2803.0,0.000184,2]
[407787610,1772801439281,-9024.34521833,0.00018409,2]
[407787611,1772801439290,-7838.6958151,0.00018409,2]
[407787612,1772801439299,-169.27,0.0001841,2]
[407787613,1772801439308,-587.0,0.00018458,2]
[407787614,1772801439316,-876.76,0.00018491,2]
[407787615,1772801439326,-9268.61,0.00018561,7]
[407787616,1772801439335,-1867.38,0.00018561,7]
[407787617,1772801439344,-780.83,0.00018581,2]
[407787618,1772801439353,-1013.12814565,0.00018622,2]
[407787619,1772801439362,-2351.0,0.00018645,2]
[407787620,1772801439371,-169.27,0.0001868,2]
[407787621,1772801439390,-337.66,0.00018713,2]
[407787622,1772801439400,-2803.0,0.0001872,2]
[407787623,1772801439409,-2803.0,0.0001872,2]
[407787624,1772801439418,-844.0,0.0001872,2]
[407787625,1772801439426,-876.76,0.00018765,2]
[407787626,1772801439436,-4000.0,0.00018821,2]
[407787627,1772801439445,-170.94637663,0.00018838,2]
[407787628,1772801439454,-780.83,0.00018855,2]
[407787629,1772801439463,-1500.0,0.0001886,2]
[407787630,1772801439472,-9024.34521833,0.00018906,2]
[407787631,1772801439482,-7838.6958151,0.00018906,2]
[407787632,1772801439491,-2500.0,0.00018932,2]
[407787633,1772801439500,-169.27,0.0001895,2]
[407787634,1772801439509,-350.0,0.00019,2]
[407787635,1772801439518,-5026.57882922,0.00019,2]
[407787636,1772801439528,-5000.0,0.00019,2]
[407787637,1772801439537,-5000.0,0.00019,2]
[407787638,1772801439547,-876.76,0.00019039,2]
[407787639,1772801439556,-2803.0,0.0001904,2]
[407787640,1772801439566,-329.65,0.00019094,2]
[407787641,1772801439575,-779.82,0.00019099,2]
[407787642,1772801439584,-578.69,0.00019099,2]
[407787645,1772801439594,-780.83,0.00019129,2]
[407787647,1772801440032,-3000.0,0.00019178,2]
[407787648,1772801440042,-3000.0,0.00019178,7]
[407787649,1772801440051,-2000.0,0.000192,2]
[407787650,1772801440060,-337.66,0.00019218,2]
[407787651,1772801440070,-169.27,0.0001922,2]
[407787652,1772801440080,-1013.12814565,0.00019261,2]
[407787653,1772801440089,-4000.0,0.0001928,2]
[407787654,1772801440098,-876.76,0.00019312,2]
[407787655,1772801440108,-172.74325605,0.00019324,2]
[407787656,1772801440117,-160.0,0.00019324,2]
[407787657,1772801440126,-168.0,0.00019324,2]
[407787658,1772801440135,-160.0,0.0001936,2]
[407787659,1772801440145,-847.0,0.0001936,2]
[407787660,1772801440155,-2803.0,0.0001936,2]
[407787661,1772801440164,-847.0,0.0001936,2]
[407787662,1772801440177,-160.0,0.0001936,2]
[407787663,1772801440187,-9024.34521833,0.00019403,2]
[407787664,1772801440196,-7838.6958151,0.00019403,2]
[407787665,1772801440205,-780.83,0.00019403,2]
[407787666,1772801440215,-3000.0,0.0001948,2]
[407787667,1772801440224,-169.27,0.0001949,2]
[407787668,1772801440233,-833.54,0.00019586,2]
[407787669,1772801440243,-1045.48833888,0.000196,2]
[407787670,1772801440252,-1149.66177047,0.000196,2]
[407787672,1772801440261,-1032.08474065,0.000196,2]
[407787674,1772801440270,-1032.72413087,0.000196,2]
[407787675,1772801440280,-1093.05611433,0.000196,2]
[407787676,1772801440289,-1027.39782307,0.000196,2]
[407787677,1772801440298,-1056.77708562,0.000196,2]
[407787678,1772801440307,-1489.2263934,0.000196,2]
[407787679,1772801440316,-168.0,0.00019645,2]
[407787680,1772801440326,-780.83,0.00019677,2]
[407787681,1772801440335,-2803.0,0.0001968,2]
[407787682,1772801440344,-160.0,0.0001968,2]
[407787683,1772801440354,-4000.0,0.00019739,2]
[407787684,1772801440366,-29547.53,0.0001976,2]
[407787685,1772801440376,-169.27,0.0001976,2]
[407787686,1772801440386,-153.25442737,0.00019881,2]
[407787687,1772801440395,-500.0,0.00019899,2]
[407787688,1772801440404,-25000.0,0.000199,3]
[407787689,1772801440414,-2148.8308,0.000199,2]
[407787690,1772801440424,-15054.43000001,0.000199,7]
[407787691,1772801440433,-438.37292204,0.000199,2]
[407787692,1772801440442,-9024.34521833,0.000199,2]
[407787693,1772801440451,-1013.12814565,0.000199,2]
[407787694,1772801440461,-268.74096126,0.000199,2]
[407787695,1772801440470,-7838.6958151,0.000199,2]
[407787696,1772801440479,-157.40983265,0.000199,2]
[407787697,1772801440489,-779.82,0.00019926,2]
[407787698,1772801440498,-779.82,0.00019926,2]
[407787699,1772801440507,-578.69,0.00019926,2]
[407787700,1772801440517,-578.69,0.00019926,2]
[407787701,1772801440526,-557.78,0.00019951,2]
[407787702,1772801440535,-329.65,0.00019962,2]
[407787703,1772801440545,-318.82,0.00019963,2]
[407787704,1772801440554,-400.0,0.0001997,2]
[407787705,1772801440567,-301.78790722,0.00019973,2]
[407787706,1772801440577,-500.0,0.00019973,2]
[407787707,1772801440586,-500.0,0.00019973,2]
[407787708,1772801440595,-500.0,0.00019973,2]
[407787709,1772801440605,-500.0,0.00019973,2]
[407787710,1772801440615,-500.0,0.00019973,2]
[407787711,1772801440624,-500.0,0.00019973,2]
[407787712,1772801440634,-500.0,0.00019973,2]
[407787713,1772801440643,-500.0,0.00019973,2]
[407787714,1772801440653,-500.0,0.00019973,2]
[407787715,1772801440663,-500.0,0.00019973,2]
[407787716,1772801440672,-500.0,0.00019973,2]
[407787717,1772801440682,-500.0,0.00019973,2]
[407787718,1772801440691,-290.0,0.00019977,2]
[407787719,1772801440701,-234.69950712,0.0001999,2]
[407787720,1772801440710,-234.69950712,0.0001999,2]
[407787721,1772801440719,-234.69950712,0.0001999,2]
[407787722,1772801440730,-500.0,0.00019991,2]
[407787723,1772801440739,-248833.279615,0.00019992,2]
[407787724,1772801440749,-22178.0979712,0.00019992,2]
[407787725,1772801440761,-151.0,0.00019997,2]